lending/lending_fUSD_20260306
["ID","MTS","AMOUNT","RATE_DAILY","PERIOD"]
[407772291,1772787043548,-160.0,0.0001872,2]
[407772292,1772787043557,-153.26719895,0.0001876,2]
[407772293,1772787043567,-214.75,0.00018762,2]
[407772294,1772787043576,-639.91866215,0.00018783,2]
[407772295,1772787043586,-3000.0,0.00018812,2]
[407772296,1772787043595,-244.66008676,0.00018818,2]
[407772297,1772787043605,-1600.0,0.00018887,2]
[407772298,1772787043614,-2000.0,0.00018897,2]
[407772299,1772787043624,-785.42431869,0.00018897,2]
[407772300,1772787043633,-557.2086331,0.00018897,2]
[407772301,1772787043643,-2000.0,0.00018897,2]
[407772302,1772787043652,-156.62,0.0001895,2]
[407772303,1772787043661,-350.0,0.00019,2]
[407772304,1772787043671,-168.23728436,0.00019,2]
[407772305,1772787043681,-29547.53,0.00019,2]
[407772306,1772787043690,-2000.0,0.00019014,2]
[407772307,1772787043699,-979.44155939,0.00019031,2]
[407772308,1772787043708,-160.0,0.0001904,2]
[407772309,1772787043718,-2803.0,0.0001904,2]
[407772310,1772787043727,-847.0,0.0001904,2]
[407772312,1772787043736,-847.0,0.0001904,2]
[407772313,1772787043745,-1410.0,0.0001904,2]
[407772314,1772787043756,-160.0,0.00019058,2]
[407772315,1772787043768,-172.74325605,0.00019058,2]
[407772316,1772787043778,-229.08,0.00019074,2]
[407772317,1772787043788,-3000.0,0.00019178,2]
[407772318,1772787043797,-3000.0,0.00019178,7]
[407772319,1772787043806,-2351.0,0.00019195,2]
[407772320,1772787043815,-2000.0,0.000192,2]
[407772321,1772787043825,-1000.0,0.00019207,2]
[407772322,1772787043834,-201.93286099,0.00019207,2]
[407772323,1772787043843,-304.02480851,0.00019207,2]
[407772324,1772787043853,-156.62,0.0001922,2]
[407772325,1772787043863,-857.75,0.00019227,7]
[407772326,1772787043873,-1000.0,0.00019294,2]
[407772327,1772787043883,-639.91866215,0.00019341,2]
[407772328,1772787043891,-2803.0,0.0001936,2]
[407772329,1772787043901,-847.0,0.0001936,2]
[407772330,1772787043910,-847.0,0.0001936,2]
[407772331,1772787043919,-3500.0,0.0001936,2]
[407772332,1772787043928,-171.84,0.00019426,2]
[407772333,1772787043938,-1649.86978781,0.00019445,2]
[407772334,1772787043947,-778.57186039,0.00019445,2]
[407772335,1772787043956,-979.44155939,0.00019465,2]
[407772336,1772787043964,-200.0,0.00019483,2]
[407772337,1772787043974,-156.62,0.0001949,2]
[407772338,1772787043983,-2500.0,0.00019562,2]
[407772339,1772787043992,-168.0,0.00019563,2]
[407772340,1772787044002,-1000.0,0.00019568,2]
[407772341,1772787044011,-848.0,0.00019584,2]
[407772342,1772787044020,-1228.56471564,0.000196,2]
[407772343,1772787044029,-160.0,0.0001968,2]
[407772344,1772787044038,-2803.0,0.0001968,2]
[407772345,1772787044048,-847.0,0.0001968,2]
[407772346,1772787044057,-2803.0,0.0001968,2]
[407772347,1772787044066,-747.8093786,0.00019754,2]
[407772348,1772787044076,-599.60298507,0.00019754,2]
[407772349,1772787044084,-1000.0,0.00019755,2]
[407772350,1772787044094,-209.40437684,0.00019755,2]
[407772351,1772787044103,-315.27372642,0.00019755,2]
[407772352,1772787044111,-156.62,0.0001976,2]
[407772353,1772787044121,-1778.46314142,0.000198,10]
[407772354,1772787044130,-153.26719895,0.00019803,2]
[407772355,1772787044140,-1000.0,0.00019842,2]
[407772356,1772787044149,-1058.11044493,0.000199,2]
[407772357,1772787044159,-979.44155939,0.000199,2]
[407772358,1772787044168,-639.91866215,0.000199,2]
[407772359,1772787044178,-2708.0,0.000199,2]
[407772360,1772787044187,-2161.0,0.000199,2]
[407772361,1772787044196,-4000.0,0.00019908,2]
[407772362,1772787044205,-168.0,0.00019942,2]
[407772363,1772787044215,-500.0,0.00019973,2]
[407772364,1772787044224,-301.78790722,0.00019973,2]
[407772365,1772787044233,-500.0,0.00019973,2]
[407772366,1772787044242,-500.0,0.00019973,2]
[407772367,1772787044251,-500.0,0.00019973,2]
[407772368,1772787044260,-500.0,0.00019973,2]
[407772369,1772787044269,-500.0,0.00019973,2]
[407772370,1772787044278,-500.0,0.00019973,2]
[407772371,1772787044288,-500.0,0.00019973,2]
[407772372,1772787044297,-500.0,0.00019973,2]
[407772373,1772787044306,-500.0,0.00019973,2]
[407772374,1772787044316,-500.0,0.00019973,2]
[407772375,1772787044325,-500.0,0.00019973,2]
[407772376,1772787044334,-500.0,0.00019973,2]
[407772377,1772787044344,-150.0,0.00019973,2]
[407772378,1772787044353,-210.86981007,0.00019976,2]
[407772379,1772787044363,-1350.86262364,0.0001999,2]
[407772380,1772787044372,-151.0,0.00019997,2]
[407772381,1772787044382,-151.0,0.00019997,2]
[407772382,1772787044391,-150.0,0.00019999,2]
[407772383,1772787044400,-183.31183954,0.00019999,2]
[407772384,1772787044409,-2001444.73246478,0.0002,2]
[407772385,1772787044419,-4079964.90455065,0.0002,2]
[407772386,1772787044434,-825.48384484,0.0002,2]
[407772387,1772787044606,-813.37658815,0.0002,2]
[407772388,1772787044902,-28.86995047,0.0002,2]
[407772393,1772787046867,-637.8146166,0.0002,2]
[407772394,1772787056850,-257.13704701,0.0002,2]
[407772395,1772787065619,10000.01,0.00015895,2]
[407772396,1772787065649,10000.01,0.00015895,2]
[407772397,1772787065680,10000.01,0.00015895,2]
[407772398,1772787065721,10000.01,0.00015895,2]
[407772399,1772787065762,10000.01,0.00015895,2]
[407772400,1772787065797,10000.01,0.00015895,2]
[407772401,1772787065829,10000.01,0.00015895,2]
[407772402,1772787065866,10000.01,0.00015895,2]
[407772403,1772787065897,10000.01,0.00015895,2]
[407772404,1772787065929,3311.2983,0.00015895,2]
[407772405,1772787104116,3531.11,0.00015203,2]
[407772406,1772787113881,506.0,0.00014,2]
[407772407,1772787135656,500.0,0.00012,2]
[407772408,1772787135744,500.0,0.00012,2]
[407772409,1772787135789,500.0,0.00012,2]
[407772410,1772787136217,500.0,0.00012,2]
[407772411,1772787136243,500.0,0.00012,2]
[407772412,1772787136273,151.6017,0.00012,2]
[407772413,1772787136294,348.3983,0.00012,2]
[407772414,1772787136362,500.0,0.00012,2]
[407772415,1772787136699,500.0,0.00012,2]
[407772416,1772787136726,500.0,0.00012,2]
[407772417,1772787136764,500.0,0.00012,2]
[407772418,1772787136793,500.0,0.00012,2]
[407772419,1772787136869,500.0,0.00010935,2]
[407772420,1772787137181,501.15119853,0.00010935,2]
[407772421,1772787137208,500.0,0.00012,2]
[407772422,1772787137255,5650.46050147,0.00015895,2]
[407772423,1772787137280,10000.01,0.00015895,2]
[407772424,1772787137304,10000.01,0.00015895,2]
[407772425,1772787137327,10000.01,0.00015895,2]
[407772426,1772787137349,10000.01,0.00015895,2]
[407772427,1772787137372,10000.01,0.00015895,2]
[407772428,1772787137395,10000.01,0.00015895,2]
[407772429,1772787137417,10000.01,0.00015895,2]
[407772430,1772787137440,10000.01,0.00015895,2]
[407772431,1772787137469,500.0,0.00012,2]
[407772432,1772787137564,500.0,0.00010935,2]
[407772433,1772787137681,331.82,0.00012,2]
[407772434,1772787137709,168.18,0.00012,2]
[407772435,1772787137757,500.0,0.00012,2]
[407772436,1772787137851,522.40279201,0.00010935,2]
[407772437,1772787138567,500.0,0.00012,2]
[407772438,1772787138594,500.0,0.00012,2]
[407772439,1772787138723,500.0,0.00012,2]
[407772440,1772787138841,500.0,0.00012,2]
[407772441,1772787138952,500.0,0.00012,2]
[407772442,1772787139091,500.0,0.00012,2]
[407772443,1772787139203,500.0,0.00012,2]
[407772444,1772787139553,500.0,0.00010935,2]
[407772445,1772787139583,500.0,0.00012,2]
[407772446,1772787139679,500.0,0.00012,2]
[407772447,1772787140178,500.0,0.00012,2]
[407772448,1772787140675,500.0,0.00012,2]
[407772449,1772787141098,500.0,0.00012,2]
[407772450,1772787141203,500.0,0.00010935,2]
[407772451,1772787141684,500.0,0.00010935,2]
[407772452,1772787141798,500.0,0.00012,2]
[407772453,1772787142253,500.0,0.00010935,2]
[407772454,1772787142327,0.01,0.00012,2]
[407772455,1772787142349,499.99,0.00012,2]
[407772456,1772787142712,500.0,0.00010935,2]
[407772457,1772787142792,500.0,0.00012,2]
[407772458,1772787143211,500.0,0.00010935,2]
[407772459,1772787143245,698.73765731,0.00010935,2]
[407772460,1772787143314,500.0,0.00010935,2]
[407772461,1772787143404,500.0,0.00012,2]
[407772462,1772787143722,500.0,0.00010935,2]
[407772463,1772787143751,500.0,0.00010935,2]
[407772464,1772787144099,301.28234269,0.00014,2]
[407772465,1772787144122,205.71765731,0.00014,2]
[407772466,1772787144261,500.0,0.00010935,2]
[407772467,1772787144294,500.0,0.00010935,2]
[407772468,1772787144420,500.0,0.00012,2]
[407772469,1772787144672,500.0,0.00010935,2]
[407772470,1772787145869,500.0,0.00010935,2]
[407772471,1772787145901,500.0,0.00012,2]
[407772472,1772787145945,975.24401555,0.00010935,2]
[407772473,1772787145991,500.0,0.00010935,2]
[407772474,1772787146081,319.04832714,0.00010935,2]
[407772475,1772787146103,180.95167286,0.00010935,2]
[407772476,1772787146137,500.0,0.00010935,2]
[407772477,1772787146377,500.0,0.00012,2]
[407772478,1772787146879,500.0,0.00010935,2]
[407772479,1772787146955,500.0,0.00012,2]
[407772480,1772787147387,500.0,0.00010935,2]
[407772481,1772787147423,500.0,0.00012,2]
[407772482,1772787147547,695.33568358,0.00010935,2]
[407772483,1772787147575,373.07221866,0.00012,2]
[407772484,1772787147702,500.0,0.00012,2]
[407772485,1772787147872,250.6504249,0.00010935,2]
[407772486,1772787147895,249.3495751,0.00010935,2]
[407772487,1772787147925,500.0,0.00010933,2]
[407772488,1772787148150,500.0,0.00012,2]
[407772489,1772787148178,500.0,0.00012,2]
[407772490,1772787148345,500.0,0.00010935,2]
[407772491,1772787148664,501.03459068,0.00010933,2]
[407772492,1772787148857,584.38727441,0.00010935,2]
[407772493,1772787149719,500.0,0.00012,2]
[407772494,1772787150511,500.0,0.00012,2]
[407772495,1772787152101,505.49393616,0.00012,2]
[407772496,1772787156983,1357.83,0.00015471,2]
[407772497,1772787166794,430.65255956,0.00015873,2]
[407772498,1772787181323,300.0,0.00015894,2]
[407772499,1772787181655,503.0,0.00014,2]
[407772500,1772787184108,258.3434165,0.00015894,2]
[407772501,1772787185975,500.0,0.00015894,2]
[407772502,1772787186012,1302.96768906,0.00015894,2]
[407772503,1772787186466,1302.96768906,0.00015894,2]
[407772504,1772787186792,469.54843128,0.00015894,2]
[407772505,1772787186829,1302.96768906,0.00015894,2]
[407772506,1772787186863,1302.96768906,0.00015894,2]
[407772507,1772787186906,1302.96768906,0.00015894,2]
[407772508,1772787186944,1023.62714736,0.00015894,2]
[407772509,1772787186972,279.3405417,0.00015894,2]
[407772510,1772787187010,1302.96768906,0.00015894,2]
[407772511,1772787187042,1302.96768906,0.00015894,2]
[407772512,1772787187075,1302.96768906,0.00015894,2]
[407772513,1772787187124,1302.96768906,0.00015894,2]
[407772514,1772787187163,1302.96768906,0.00015894,2]
[407772515,1772787187195,1302.96768906,0.00015894,2]
[407772516,1772787187234,1302.96768906,0.00015894,2]
[407772517,1772787187269,599.89563488,0.00015894,2]
[407772518,1772787187299,703.07205418,0.00015894,2]
[407772519,1772787187332,1302.96768906,0.00015894,2]
[407772520,1772787187364,1302.96768906,0.00015894,2]
[407772521,1772787187399,1302.96768906,0.00015894,2]
[407772522,1772787187432,1302.96768906,0.00015894,2]
[407772523,1772787187472,198.85155453,0.00015894,2]
[407772524,1772787187508,1302.96768906,0.00015894,2]
[407772525,1772787187553,1302.96768906,0.00015894,2]
[407772526,1772787187591,1280.28025693,0.00015894,2]
[407772527,1772787187618,22.68743213,0.00015894,2]
[407772528,1772787187659,1302.96768906,0.00015894,2]
[407772529,1772787187692,1302.96768906,0.00015894,2]
[407772530,1772787187724,1302.96768906,0.00015894,2]
[407772531,1772787187775,1302.96768906,0.00015894,2]
[407772532,1772787187814,1302.96768906,0.00015894,2]
[407772533,1772787187851,1302.96768906,0.00015894,2]
[407772534,1772787187886,1302.96768906,0.00015894,2]
[407772535,1772787187927,856.54874445,0.00015894,2]
[407772536,1772787187956,446.41894461,0.00015894,2]
[407772537,1772787187988,1302.96768906,0.00015894,2]
[407772538,1772787188037,1302.96768906,0.00015894,2]
[407772539,1772787188077,1302.96768906,0.00015894,2]
[407772540,1772787188108,1302.96768906,0.00015894,2]
[407772541,1772787188141,1302.96768906,0.00015894,2]
[407772542,1772787188178,1302.96768906,0.00015894,2]
[407772543,1772787188210,1302.96768906,0.00015894,2]
[407772544,1772787188247,432.81723197,0.00015894,2]
[407772545,1772787188273,870.15045709,0.00015894,2]
[407772546,1772787188331,1302.96768906,0.00015894,2]
[407772547,1772787188362,1302.96768906,0.00015894,2]
[407772548,1772787188397,1302.96768906,0.00015894,2]
[407772549,1772787188433,1302.96768906,0.00015894,2]
[407772550,1772787188464,1302.96768906,0.00015894,2]
[407772551,1772787188499,1302.96768906,0.00015894,2]
[407772552,1772787188536,1302.96768906,0.00015894,2]
[407772553,1772787188567,9.08571949,0.00015894,2]
[407772554,1772787188593,1293.88196957,0.00015894,2]
[407772555,1772787188644,1302.96768906,0.00015894,2]
[407772556,1772787188675,1302.96768906,0.00015894,2]
[407772557,1772787188719,1302.96768906,0.00015894,2]
[407772558,1772787189755,1302.96768906,0.00015894,2]
[407772559,1772787189794,1302.96768906,0.00015894,2]
[407772560,1772787189832,1302.96768906,0.00015894,2]
[407772561,1772787189872,888.32189607,0.00015894,2]
[407772562,1772787189895,414.64579299,0.00015894,2]
[407772563,1772787189926,1302.96768906,0.00015894,2]
[407772564,1772787191722,1821.57,8.708e-05,2]
[407772565,1772787191925,1821.57,9.166e-05,2]
[407772566,1772787192147,1821.57,9.625e-05,2]
[407772567,1772787192324,1821.57,0.00010083,2]
[407772568,1772787192529,996.11651795,0.00010541,2]
[407772569,1772787192552,825.45348205,0.00010541,2]
[407772570,1772787192734,1821.57,0.00011,2]
[407772571,1772787192926,1821.57,0.00011458,2]
[407772572,1772787193137,1821.57,0.00011916,2]
[407772573,1772787193319,1821.57,0.00012375,2]
[407772574,1772787193587,1821.57,0.00012833,2]
[407772575,1772787193801,66.70651795,0.00013291,2]
[407772576,1772787193823,1754.86348205,0.00013291,2]
[407772577,1772787194003,1821.57,0.0001375,2]
[407772578,1772787194207,1821.57,0.00014208,2]
[407772579,1772787194614,1821.57,0.00014666,2]
[407772580,1772787203416,505.0,0.00014,2]
[407772581,1772787208934,-1821.57,0.00015125,2]
[407772582,1772787208968,-1821.57,0.00015583,2]
[407772583,1772787215028,1276.90833527,0.00015894,2]
[407772584,1772787215065,1276.90833527,0.00015894,2]
[407772585,1772787215110,159.91332946,0.00015894,2]
[407772586,1772787221256,-2583.28918917,0.00015834,2]
[407772587,1772787237271,3022.21312932,0.00015794,2]
[407772588,1772787239780,300.0,0.00014,2]
[407772589,1772787242258,441.83419137,0.00015834,2]
[407772590,1772787242517,300.0,0.00015893,2]
[407772591,1772787243002,300.0,0.00015893,2]
[407772592,1772787254061,415.0,0.00015863,2]
[407772593,1772787254133,54.38430097,0.00015863,2]
[407772594,1772787254155,408.61569903,0.00015863,2]
[407772595,1772787267499,710.0,0.00014,2]
[407772596,1772787275574,164.433249,0.0001558,7]
[407772597,1772787304047,505.0,0.00014,2]
[407772598,1772787308172,151.0,0.00014634,2]
[407772599,1772787331294,394.17006215,0.00015834,2]
[407772600,1772787364148,522.66580675,0.00015834,2]
[407772601,1772787366845,-300.0,0.00015893,2]
[407772602,1772787394091,506.0,0.00014,2]
[407772603,1772787411530,151.0,0.00014634,2]
[407772604,1772787421383,673.88788803,0.00015794,2]
[407772605,1772787422625,300.0,0.00015893,2]
[407772606,1772787427379,673.88788802,0.00015795,2]
[407772607,1772787427921,1113.593449,7.945e-05,2]
[407772608,1772787433394,673.88788802,0.00015795,2]
[407772609,1772787435990,500.0,0.00012,2]
[407772610,1772787436117,510.32990281,0.00012,2]
[407772611,1772787436161,500.0,0.00012,2]
[407772612,1772787436262,500.0,0.00012,2]
[407772613,1772787436388,500.0,0.00012,2]
[407772614,1772787436658,500.0,0.00012,2]
[407772615,1772787436752,500.0,0.00012,2]
[407772616,1772787436866,500.0,0.00010893,2]
[407772617,1772787437170,500.0,0.00012,2]
[407772618,1772787437233,500.0,0.00012,2]
[407772619,1772787437648,297.42298412,0.00010893,2]
[407772620,1772787437672,202.57701588,0.00010893,2]
[407772621,1772787437730,500.0,0.00010893,2]
[407772622,1772787438131,642.1508271,0.00010893,2]
[407772623,1772787438203,500.0,0.00010893,2]
[407772624,1772787438685,524.69213609,0.00010893,2]
[407772625,1772787441197,500.0,0.00012,2]
[407772626,1772787441430,3298.62709109,0.00015795,2]
[407772627,1772787441717,500.0,0.00012,2]
[407772628,1772787443117,500.0,0.00010893,2]
[407772629,1772787443245,500.0,0.00012,2]
[407772630,1772787443283,500.0,0.00012,2]
[407772631,1772787443712,500.0,0.00012,2]
[407772632,1772787443763,512.4085473,0.00010893,2]
[407772633,1772787444211,819.55438254,0.00010893,2]
[407772634,1772787444234,170.05390957,0.00010893,2]
[407772635,1772787444262,500.0,0.00012,2]
[407772636,1772787444290,500.0,0.00012,2]
[407772637,1772787444733,500.0,0.00012,2]
[407772638,1772787444773,500.0,0.00012,2]
[407772639,1772787445204,500.0,0.00012,2]
[407772640,1772787445251,500.0,0.00010893,2]
[407772641,1772787445677,500.0,0.00012,2]
[407772642,1772787446149,500.0,0.00012,2]
[407772643,1772787446624,500.0,0.00010893,2]
[407772644,1772787447120,500.0,0.00010893,2]
[407772645,1772787447574,500.0,0.00010893,2]
[407772646,1772787448078,500.0,0.00010893,2]
[407772647,1772787448105,269.3417456,0.00012,2]
[407772648,1772787448392,500.0,0.00012,2]
[407772649,1772787448584,584.23329201,0.00010893,2]
[407772650,1772787448864,500.0,0.00012,2]
[407772651,1772787449080,500.0,0.00012,2]
[407772652,1772787449546,500.0,0.00010893,2]
[407772653,1772787449595,500.0,0.00012,2]
[407772654,1772787450030,500.0,0.00010893,2]
[407772655,1772787450090,500.0,0.00010893,2]
[407772656,1772787450127,500.0,0.00012,2]
[407772657,1772787451589,617.58570335,0.00010893,2]
[407772658,1772787478659,500.0,0.00015883,2]
[407772659,1772787481467,300.0,0.00015893,2]
[407772671,1772787583033,1228.84925904,0.00015795,2]
[407772672,1772787583056,2943.53166393,0.00015795,2]
[407772673,1772787587697,1179.72371882,0.00015795,2]
[407772674,1772787595595,5876.75461725,9.95e-05,2]
[407772675,1772787595617,10000.01,9.95e-05,2]
[407772676,1772787595639,10000.01,9.95e-05,2]
[407772677,1772787595663,10000.01,9.95e-05,2]
[407772678,1772787595686,10000.01,9.95e-05,2]
[407772679,1772787595709,10000.01,9.95e-05,2]
[407772680,1772787595732,10000.01,9.95e-05,2]
[407772681,1772787595753,835.17403482,9.95e-05,2]
[407772682,1772787602740,4971.87037088,8e-05,2]
[407772684,1772787606625,1055.11455448,0.00011,2]
[407772688,1772787611249,172.0,0.00015883,2]
[407772689,1772787611369,160.0,0.00015883,2]
[407772690,1772787612153,2760.77629561,0.00015795,2]
[407772691,1772787614137,45.07474421,0.00015883,2]
[407772692,1772787614162,110.92525579,0.00015883,2]
[407772693,1772787619060,150.0,0.00015793,2]
[407772695,1772787654216,2149.26884417,0.00015,14]
[407772696,1772787667566,160.0,0.00015885,2]
[407772697,1772787669728,156.0,0.00015885,2]
[407772698,1772787671778,500.0,0.00015873,2]
[407772699,1772787684839,1000.0,0.0001525,2]
[407772700,1772787726038,328.4750518,0.00015795,2]
[407772701,1772787727306,500.0,0.00015873,2]
[407772702,1772787727366,500.0,0.00015873,2]
[407772703,1772787727860,503.40655487,0.00015873,2]
[407772704,1772787728009,-343.40926955,0.00015885,2]
[407772705,1772787739487,530.94605095,0.0001,2]
[407772706,1772787742269,500.0,0.00012,2]
[407772707,1772787743292,500.0,0.00012,2]
[407772708,1772787743831,763.58148582,0.00010885,2]
[407772709,1772787746908,500.0,0.00012,2]
[407772710,1772787747586,500.0,0.00012,2]
[407772711,1772787747670,500.0,0.00012,2]
[407772712,1772787751634,506.0,0.00014,2]
[407772713,1772787754549,348.44387116,0.00015795,2]
[407772714,1772787755230,250.0,0.00015,2]
[407772715,1772787759954,500.0,0.0001562,2]
[407772716,1772787759991,500.0,0.0001562,2]
[407772717,1772787760393,1127.0,0.0001562,2]
[407772720,1772787761014,500.0,0.0001562,2]
[407772721,1772787761414,4004.98464302,9.5e-05,3]
[407772722,1772787761437,10000.01,9.5e-05,3]
[407772723,1772787761458,10000.01,9.5e-05,3]
[407772724,1772787761479,10000.01,9.5e-05,3]
[407772725,1772787761500,10000.01,9.5e-05,3]
[407772726,1772787761534,10000.01,9.5e-05,3]
[407772727,1772787761559,10000.01,9.5e-05,3]
[407772728,1772787761581,10000.01,9.5e-05,3]
[407772729,1772787761602,10000.01,9.5e-05,3]
[407772730,1772787761624,10000.01,9.5e-05,3]
[407772731,1772787761647,55090.42502272,9.5e-05,3]
[407772732,1772787761672,9000.0,9.5e-05,3]
[407772733,1772787761694,1149.81584153,9.5e-05,3]
[407772734,1772787761715,1149.81584153,9.5e-05,3]
[407772735,1772787761735,1149.81584153,9.5e-05,3]
[407772736,1772787762226,1149.81584153,9.5e-05,3]
[407772737,1772787762249,1149.81584153,9.5e-05,3]
[407772738,1772787762270,1149.81584153,9.5e-05,3]
[407772739,1772787762291,1149.81584153,9.5e-05,3]
[407772740,1772787762312,1149.81584153,9.5e-05,3]
[407772741,1772787762337,1149.81584153,9.5e-05,3]
[407772742,1772787762360,1149.81584153,9.5e-05,3]
[407772743,1772787762387,100000.0,9.5e-05,3]
[407772744,1772787762412,100000.0,9.5e-05,3]
[407772745,1772787762436,100000.0,9.5e-05,3]
[407772746,1772787762460,13736.0,9.5e-05,3]
[407772747,1772787762484,100000.0,9.5e-05,3]
[407772748,1772787762509,676000.0,9.5e-05,3]
[407772749,1772787762534,99072.0,9.5e-05,3]
[407772750,1772787762563,15644.27541476,9.5e-05,3]
[407772751,1772787762583,20000.0,9.5e-05,3]
[407772752,1772787762603,20000.0,9.5e-05,3]
[407772753,1772787762623,20000.0,9.5e-05,3]
[407772754,1772787762647,100000.0,9.5e-05,3]
[407772755,1772787782811,-300.0,9.499e-05,2]
[407772756,1772787782821,-4181.60911153,9.5e-05,3]
[407772757,1772787782855,-5000.01,9.5e-05,3]
[407772758,1772787783014,-5000.01,9.5e-05,3]
[407772759,1772787783054,-150.0,9.499e-05,2]
[407772760,1772787783508,-5000.01,9.5e-05,3]
[407772761,1772787783567,-5000.01,9.5e-05,3]
[407772762,1772787784814,-5000.01,9.5e-05,3]
[407772763,1772787784918,-5000.01,9.5e-05,3]
[407772764,1772787785078,-5000.01,9.5e-05,3]
[407772765,1772787785205,-5000.01,9.5e-05,3]
[407772766,1772787790898,-5000.01,9.5e-05,3]
[407772767,1772787797802,-1065.382331,9.452e-05,2]
[407772768,1772787798888,-2629.23457645,9.5e-05,3]
[407772769,1772787798956,-10000.01,9.5e-05,3]
[407772770,1772787799057,-10000.01,9.5e-05,3]
[407772771,1772787800067,-5000.01,9.5e-05,3]
[407772772,1772787800288,-5000.01,9.5e-05,3]
[407772773,1772787800388,-5000.01,9.5e-05,3]
[407772774,1772787800519,-5000.01,9.5e-05,3]
[407772775,1772787800643,-5000.01,9.5e-05,3]
[407772776,1772787800727,-10000.01,9.5e-05,3]
[407772777,1772787800790,-5000.01,9.5e-05,3]
[407772778,1772787800846,-10000.01,9.5e-05,3]
[407772779,1772787800891,-5000.01,9.5e-05,3]
[407772780,1772787800961,-10000.01,9.5e-05,3]
[407772781,1772787801250,-10000.01,9.5e-05,3]
[407772782,1772787801404,-10000.01,9.5e-05,3]
[407772783,1772787801538,-10000.01,9.5e-05,3]
[407772784,1772787801660,-10000.01,9.5e-05,3]
[407772785,1772787802900,-5000.01,9.5e-05,3]
[407772786,1772787802994,-5000.01,9.5e-05,3]
[407772788,1772787806800,-10000.01,9.5e-05,3]
[407772789,1772787806904,-10000.01,9.5e-05,3]
[407772790,1772787815989,-10000.01,9.5e-05,3]
[407772791,1772787816183,-10000.01,9.5e-05,3]
[407772792,1772787816318,-10000.01,9.5e-05,3]
[407772793,1772787816441,-10000.01,9.5e-05,3]
[407772794,1772787816546,-10000.01,9.5e-05,3]
[407772795,1772787816645,-10000.01,9.5e-05,3]
[407772796,1772787816802,-10000.01,9.5e-05,3]
[407772797,1772787821913,-10000.01,9.5e-05,3]
[407772798,1772787822014,-10000.01,9.5e-05,3]
[407772799,1772787822144,-10000.01,9.5e-05,3]
[407772800,1772787831080,-10000.01,9.5e-05,3]
[407772801,1772787831407,-10000.01,9.5e-05,3]
[407772802,1772787831642,-10000.01,9.5e-05,3]
[407772803,1772787831990,-10000.01,9.5e-05,3]
[407772804,1772787832295,-10000.01,9.5e-05,3]
[407772805,1772787832505,-10000.01,9.5e-05,3]
[407772806,1772787832743,-10000.01,9.5e-05,3]
[407772807,1772787833954,-10000.01,9.5e-05,3]
[407772808,1772787834061,-5000.01,9.5e-05,3]
[407772809,1772787834092,-10000.01,9.5e-05,3]
[407772810,1772787834260,-5000.01,9.5e-05,3]
[407772811,1772787834378,-5000.01,9.5e-05,3]
[407772812,1772787834527,-5000.01,9.5e-05,3]
[407772813,1772787834644,-5000.01,9.5e-05,3]
[407772814,1772787837058,-10000.01,9.5e-05,3]